[Event "*** SCC Grand Prix: Titled Tuesday Blitz"]
[Site "Chess.com"]
[Date "2020.08.04"]
[Round "9"]
[White "Chessbard1972"]
[Black "DaggiGretarsson"]
[Result "0-1"]
[WhiteElo "2349"]
[BlackElo "2608"]
[TimeControl "180+1"]
[EndTime "15:27:29 PDT"]
[Termination "DaggiGretarsson won on time"]

1. e4 {[%clk 0:03:00.9]} 1... g6 {[%clk 0:03:00]} 2. d4 {[%clk 0:03:00]} 2...
Bg7 {[%clk 0:03:00.3]} 3. Nc3 {[%clk 0:02:59.7]} 3... d6 {[%clk 0:03:00.5]} 4.
f3 {[%clk 0:02:57.5]} 4... a6 {[%clk 0:02:59.6]} 5. a4 {[%clk 0:02:56.5]} 5...
b6 {[%clk 0:02:58.9]} 6. Be3 {[%clk 0:02:55.4]} 6... Nd7 {[%clk 0:02:56.8]} 7.
Qd2 {[%clk 0:02:54.9]} 7... Bb7 {[%clk 0:02:46.4]} 8. Bc4 {[%clk 0:02:53.6]}
8... e6 {[%clk 0:02:45.5]} 9. Nge2 {[%clk 0:02:51.5]} 9... h6 {[%clk 0:02:39.9]}
10. O-O {[%clk 0:02:49.7]} 10... Ne7 {[%clk 0:02:38.7]} 11. Ba2 {[%clk
0:02:47.2]} 11... c6 {[%clk 0:02:29.4]} 12. Nf4 {[%clk 0:02:32.5]} 12... d5
{[%clk 0:02:23.4]} 13. exd5 {[%clk 0:02:30.4]} 13... cxd5 {[%clk 0:02:22.2]} 14.
Nd3 {[%clk 0:02:25.8]} 14... Nf5 {[%clk 0:02:21.3]} 15. Ne2 {[%clk 0:02:17.8]}
15... a5 {[%clk 0:02:07]} 16. c3 {[%clk 0:02:11.7]} 16... Ba6 {[%clk 0:02:04.8]}
17. Bf4 {[%clk 0:02:05.4]} 17... g5 {[%clk 0:02:00.7]} 18. Be3 {[%clk
0:01:56.9]} 18... Nxe3 {[%clk 0:01:46.7]} 19. Qxe3 {[%clk 0:01:56.2]} 19... Rc8
{[%clk 0:01:32.2]} 20. Ng3 {[%clk 0:01:51.2]} 20... h5 {[%clk 0:01:28.2]} 21.
Nf5 {[%clk 0:01:44.1]} 21... Bf8 {[%clk 0:01:27.8]} 22. Bxd5 {[%clk 0:01:28.6]}
22... Qf6 {[%clk 0:01:22.6]} 23. Ng3 {[%clk 0:00:38.4]} 23... Bxd3 {[%clk
0:01:21]} 24. Qxd3 {[%clk 0:00:31.8]} 24... exd5 {[%clk 0:01:20.1]} 25. Rae1+
{[%clk 0:00:30.4]} 25... Kd8 {[%clk 0:01:18]} 26. Nf5 {[%clk 0:00:27.2]} 26...
Qc6 {[%clk 0:01:04.9]} 27. Qe3 {[%clk 0:00:22.9]} 27... f6 {[%clk 0:00:50.5]}
28. Qf2 {[%clk 0:00:16.9]} 28... Rh7 {[%clk 0:00:43.6]} 29. Re2 {[%clk
0:00:14.8]} 29... Kc7 {[%clk 0:00:43.1]} 30. Rfe1 {[%clk 0:00:14.4]} 30... Bd6
{[%clk 0:00:42.7]} 31. Re6 {[%clk 0:00:13.6]} 31... Qxa4 {[%clk 0:00:33.3]} 32.
Nxd6 {[%clk 0:00:12.9]} 32... Rg8 {[%clk 0:00:30.8]} 33. Qg3 {[%clk 0:00:12.8]}
33... Kc6 {[%clk 0:00:12.9]} 34. Ne8+ {[%clk 0:00:11.8]} 34... Kb5 {[%clk
0:00:12.5]} 35. Nc7+ {[%clk 0:00:10.3]} 35... Kc4 {[%clk 0:00:11.9]} 36. Qf2
{[%clk 0:00:09.7]} 36... Kb3 {[%clk 0:00:09]} 37. Rd6 {[%clk 0:00:06.9]} 37...
g4 {[%clk 0:00:08]} 38. f4 {[%clk 0:00:06]} 38... g3 {[%clk 0:00:07.8]} 39. hxg3
{[%clk 0:00:05.2]} 39... h4 {[%clk 0:00:08.3]} 40. gxh4 {[%clk 0:00:03.7]} 40...
Rhg7 {[%clk 0:00:07.8]} 0-1

[Event "*** SCC Grand Prix: Titled Tuesday Blitz"]
[Site "Chess.com"]
[Date "2020.08.04"]
[Round "9"]
[White "Mikhail_Golubev"]
[Black "vladislavkovalev"]
[Result "0-1"]
[WhiteElo "2597"]
[BlackElo "2877"]
[TimeControl "180+1"]
[EndTime "15:27:31 PDT"]
[Termination "vladislavkovalev won on time"]

1. e4 {[%clk 0:03:00.9]} 1... e5 {[%clk 0:02:58.1]} 2. Nf3 {[%clk 0:03:00.4]}
2... Nc6 {[%clk 0:02:58.8]} 3. Nc3 {[%clk 0:03:00.8]} 3... Nf6 {[%clk
0:02:58.9]} 4. d4 {[%clk 0:03:00.9]} 4... Bb4 {[%clk 0:02:59.4]} 5. Nxe5 {[%clk
0:02:56]} 5... Qe7 {[%clk 0:02:59.1]} 6. Qd3 {[%clk 0:02:22.7]} 6... Nxe5 {[%clk
0:02:56.1]} 7. dxe5 {[%clk 0:02:22.6]} 7... Qxe5 {[%clk 0:02:57]} 8. Bd2 {[%clk
0:02:22.6]} 8... O-O {[%clk 0:02:57.4]} 9. f4 {[%clk 0:02:16.8]} 9... Qe6 {[%clk
0:02:56.3]} 10. e5 {[%clk 0:01:25.9]} 10... d6 {[%clk 0:02:54.6]} 11. Nb5 {[%clk
0:01:25.3]} 11... Bxd2+ {[%clk 0:02:52.1]} 12. Qxd2 {[%clk 0:01:24.9]} 12... Qe7
{[%clk 0:02:43.4]} 13. Qe2 {[%clk 0:01:07.9]} 13... dxe5 {[%clk 0:02:40.8]} 14.
Qxe5 {[%clk 0:01:04.3]} 14... Re8 {[%clk 0:02:35]} 15. O-O-O {[%clk 0:00:59]}
15... Bg4 {[%clk 0:02:26.3]} 16. Nxc7 {[%clk 0:00:46.6]} 16... Bxd1 {[%clk
0:02:00]} 17. Nxe8 {[%clk 0:00:45.8]} 17... Rxe8 {[%clk 0:01:48.8]} 18. Qxe7
{[%clk 0:00:45.4]} 18... Rxe7 {[%clk 0:01:49.7]} 19. Kxd1 {[%clk 0:00:43.6]}
19... Ng4 {[%clk 0:01:50.4]} 20. Kd2 {[%clk 0:00:37.4]} 20... Nf2 {[%clk
0:01:19.4]} 21. Rg1 {[%clk 0:00:37]} 21... Ne4+ {[%clk 0:01:20.3]} 22. Kd1
{[%clk 0:00:36.9]} 22... Nf2+ {[%clk 0:01:17.1]} 23. Kd2 {[%clk 0:00:37]} 23...
Ne4+ {[%clk 0:01:16.3]} 24. Kd1 {[%clk 0:00:37.3]} 24... f5 {[%clk 0:01:14.4]}
25. Bd3 {[%clk 0:00:36.5]} 25... Kf7 {[%clk 0:01:12.6]} 26. Re1 {[%clk
0:00:32.4]} 26... Nf2+ {[%clk 0:01:12.4]} 27. Kd2 {[%clk 0:00:31.7]} 27... Rd7
{[%clk 0:01:13.1]} 28. Kc3 {[%clk 0:00:27.2]} 28... Kf6 {[%clk 0:01:08.7]} 29.
Re2 {[%clk 0:00:24.4]} 29... Nd1+ {[%clk 0:01:05]} 30. Kb3 {[%clk 0:00:21.2]}
30... Rd6 {[%clk 0:01:05.5]} 31. g3 {[%clk 0:00:17.3]} 31... Rb6+ {[%clk
0:01:03.2]} 32. Ka3 {[%clk 0:00:17.5]} 32... Nxb2 {[%clk 0:01:00.8]} 33. Re5
{[%clk 0:00:11.7]} 33... Nxd3 {[%clk 0:00:58.2]} 34. cxd3 {[%clk 0:00:11.7]}
34... Rd6 {[%clk 0:00:58.9]} 35. Re3 {[%clk 0:00:12.2]} 35... Re6 {[%clk
0:00:56.3]} 36. Rxe6+ {[%clk 0:00:10.4]} 36... Kxe6 {[%clk 0:00:56.4]} 37. Kb3
{[%clk 0:00:10.7]} 37... Kd5 {[%clk 0:00:57]} 38. Kc3 {[%clk 0:00:11]} 38... h5
{[%clk 0:00:48.5]} 39. h3 {[%clk 0:00:10.2]} 39... Kc5 {[%clk 0:00:46.2]} 40.
d4+ {[%clk 0:00:07]} 40... Kd5 {[%clk 0:00:46.5]} 41. Kd3 {[%clk 0:00:07.5]}
41... b5 {[%clk 0:00:46.4]} 42. Kc3 {[%clk 0:00:07.3]} 42... a5 {[%clk 0:00:46]}
43. Kd3 {[%clk 0:00:06.2]} 43... b4 {[%clk 0:00:43.6]} 44. Ke3 {[%clk
0:00:04.3]} 44... Kc4 {[%clk 0:00:41.6]} 45. g4 {[%clk 0:00:04.4]} 45... hxg4
{[%clk 0:00:41.7]} 46. hxg4 {[%clk 0:00:04.7]} 46... g6 {[%clk 0:00:41.9]} 47.
g5 {[%clk 0:00:03.8]} 47... a4 {[%clk 0:00:42]} 48. d5 {[%clk 0:00:03.4]} 48...
Kxd5 {[%clk 0:00:42.5]} 49. Kf2 {[%clk 0:00:03.6]} 49... b3 {[%clk 0:00:41.5]}
50. Kg3 {[%clk 0:00:04.2]} 50... bxa2 {[%clk 0:00:41.5]} 51. Kh4 {[%clk
0:00:04.2]} 51... a1=Q {[%clk 0:00:41.9]} 52. Kh3 {[%clk 0:00:04.4]} 52... Qg1
{[%clk 0:00:39.5]} 53. Kh4 {[%clk 0:00:03.3]} 53... Ke4 {[%clk 0:00:40.4]} 0-1

[Event "*** SCC Grand Prix: Titled Tuesday Blitz"]
[Site "Chess.com"]
[Date "2020.08.04"]
[Round "9"]
[White "Rodalquilar"]
[Black "anpospan"]
[Result "0-1"]
[WhiteElo "2634"]
[BlackElo "2369"]
[TimeControl "180+1"]
[EndTime "15:27:33 PDT"]
[Termination "anpospan won on time"]

1. d4 {[%clk 0:03:00.9]} 1... Nf6 {[%clk 0:02:59.2]} 2. Bf4 {[%clk 0:03:01.1]}
2... d6 {[%clk 0:02:58]} 3. Nf3 {[%clk 0:02:59.6]} 3... g6 {[%clk 0:02:58.1]} 4.
e3 {[%clk 0:02:59.6]} 4... Bg7 {[%clk 0:02:58.3]} 5. Be2 {[%clk 0:03:00.1]} 5...
O-O {[%clk 0:02:58.1]} 6. O-O {[%clk 0:03:00.4]} 6... Nbd7 {[%clk 0:02:58.1]} 7.
h3 {[%clk 0:03:00]} 7... Re8 {[%clk 0:02:58.2]} 8. Bh2 {[%clk 0:02:52.7]} 8...
c6 {[%clk 0:02:56.2]} 9. Nbd2 {[%clk 0:02:41.4]} 9... e5 {[%clk 0:02:54.1]} 10.
Nc4 {[%clk 0:02:40.2]} 10... e4 {[%clk 0:02:41.3]} 11. Nfd2 {[%clk 0:02:07.4]}
11... d5 {[%clk 0:02:41.3]} 12. Nd6 {[%clk 0:02:06.3]} 12... Re6 {[%clk
0:02:41.1]} 13. c4 {[%clk 0:02:04.8]} 13... Ne8 {[%clk 0:02:29.7]} 14. Nxc8
{[%clk 0:01:39.3]} 14... Rxc8 {[%clk 0:02:26.2]} 15. Qb3 {[%clk 0:01:35.6]}
15... Qb6 {[%clk 0:02:16.6]} 16. cxd5 {[%clk 0:01:15.3]} 16... Qxb3 {[%clk
0:01:56]} 17. axb3 {[%clk 0:01:16.2]} 17... cxd5 {[%clk 0:01:55.1]} 18. Rxa7
{[%clk 0:01:16.3]} 18... Rc2 {[%clk 0:01:46.9]} 19. Bb5 {[%clk 0:01:16.2]} 19...
Ndf6 {[%clk 0:01:12]} 20. Rd1 {[%clk 0:00:57.3]} 20... Rb6 {[%clk 0:01:08.9]}
21. Ba4 {[%clk 0:00:45.1]} 21... Bf8 {[%clk 0:01:07.4]} 22. Ra8 {[%clk 0:00:39]}
22... Nc7 {[%clk 0:01:02.8]} 23. Nc4 {[%clk 0:00:24]} 23... Nxa8 {[%clk
0:01:00.8]} 24. Nxb6 {[%clk 0:00:15.9]} 24... Nxb6 {[%clk 0:01:00.8]} 25. Bb5
{[%clk 0:00:06.4]} 25... Rxb2 {[%clk 0:01:00]} 26. Ra1 {[%clk 0:00:05.7]} 26...
Rxb3 {[%clk 0:00:57.6]} 27. Bf1 {[%clk 0:00:06]} 27... Rb2 {[%clk 0:00:52.7]}
28. Bg3 {[%clk 0:00:04.6]} 28... Kg7 {[%clk 0:00:51.6]} 29. Kh2 {[%clk
0:00:04.9]} 29... Nc4 {[%clk 0:00:49.4]} 30. Ra8 {[%clk 0:00:03.3]} 30... Bd6
{[%clk 0:00:45.2]} 31. Bxd6 {[%clk 0:00:01.4]} 31... Nxd6 {[%clk 0:00:44.7]} 32.
Rd8 {[%clk 0:00:02.3]} 32... Nfe8 {[%clk 0:00:39.6]} 33. Rd7 {[%clk 0:00:02.6]}
33... Rxf2 {[%clk 0:00:36.7]} 34. Kg1 {[%clk 0:00:03.1]} 34... Rb2 {[%clk
0:00:35.4]} 35. h4 {[%clk 0:00:03.8]} 35... h5 {[%clk 0:00:34.5]} 36. g3 {[%clk
0:00:04.2]} 36... Nf5 {[%clk 0:00:31.9]} 37. Bh3 {[%clk 0:00:04.2]} 37... Nf6
{[%clk 0:00:29.5]} 38. Rd8 {[%clk 0:00:02.9]} 38... Nxg3 {[%clk 0:00:27.2]} 39.
Rd6 {[%clk 0:00:01.9]} 39... b5 {[%clk 0:00:26.1]} 40. Bc8 {[%clk 0:00:02.1]}
40... b4 {[%clk 0:00:25.2]} 41. Bb7 {[%clk 0:00:03]} 41... b3 {[%clk 0:00:24]}
42. Bxd5 {[%clk 0:00:03.1]} 42... Nxd5 {[%clk 0:00:23.3]} 43. Rxd5 {[%clk
0:00:04]} 43... Rc2 {[%clk 0:00:23]} 44. Rd7 {[%clk 0:00:04.4]} 44... b2 {[%clk
0:00:22.4]} 45. Rxf7+ {[%clk 0:00:04.8]} 45... Kxf7 {[%clk 0:00:18.8]} 0-1

[Event "*** SCC Grand Prix: Titled Tuesday Blitz"]
[Site "Chess.com"]
[Date "2020.08.04"]
[Round "9"]
[White "RaphCamora"]
[Black "BlueWizzard"]
[Result "0-1"]
[WhiteElo "2452"]
[BlackElo "2711"]
[TimeControl "180+1"]
[EndTime "15:27:34 PDT"]
[Termination "BlueWizzard won by checkmate"]

1. Nf3 {[%clk 0:03:00.9]} 1... c5 {[%clk 0:03:00.5]} 2. g3 {[%clk 0:03:00.3]}
2... g6 {[%clk 0:03:01]} 3. Bg2 {[%clk 0:03:00.4]} 3... Bg7 {[%clk 0:03:01.9]}
4. O-O {[%clk 0:03:00.7]} 4... Nf6 {[%clk 0:03:01.7]} 5. c4 {[%clk 0:03:00.5]}
5... O-O {[%clk 0:03:02.6]} 6. d4 {[%clk 0:02:58.9]} 6... Na6 {[%clk 0:03:03.2]}
7. Nc3 {[%clk 0:02:55.3]} 7... d6 {[%clk 0:03:03.6]} 8. b3 {[%clk 0:02:38]} 8...
Bg4 {[%clk 0:02:58.2]} 9. Bb2 {[%clk 0:02:34.6]} 9... Qc8 {[%clk 0:02:49]} 10.
d5 {[%clk 0:02:31.6]} 10... Re8 {[%clk 0:02:35.5]} 11. Qd2 {[%clk 0:02:26.4]}
11... Nc7 {[%clk 0:02:26.9]} 12. e4 {[%clk 0:02:20.7]} 12... b5 {[%clk
0:02:26.5]} 13. cxb5 {[%clk 0:02:19.4]} 13... Rb8 {[%clk 0:02:25]} 14. a4 {[%clk
0:02:18.3]} 14... a6 {[%clk 0:02:25.3]} 15. e5 {[%clk 0:01:55.8]} 15... Nd7
{[%clk 0:02:24.8]} 16. e6 {[%clk 0:01:19.4]} 16... fxe6 {[%clk 0:02:20.7]} 17.
Ng5 {[%clk 0:01:19.8]} 17... exd5 {[%clk 0:01:54.4]} 18. Nxd5 {[%clk 0:01:00.5]}
18... Nf8 {[%clk 0:01:21]} 19. Nxc7 {[%clk 0:00:40.5]} 19... Qxc7 {[%clk
0:01:15.6]} 20. h3 {[%clk 0:00:41.4]} 20... Bxb2 {[%clk 0:01:09.7]} 21. Qxb2
{[%clk 0:00:37.9]} 21... Bf5 {[%clk 0:01:05.1]} 22. bxa6 {[%clk 0:00:36.8]}
22... c4 {[%clk 0:00:58.4]} 23. b4 {[%clk 0:00:36]} 23... h6 {[%clk 0:00:49]}
24. Ne4 {[%clk 0:00:29.8]} 24... Qb6 {[%clk 0:00:43.9]} 25. b5 {[%clk
0:00:29.5]} 25... Qxa6 {[%clk 0:00:41.9]} 26. Qd4 {[%clk 0:00:24.9]} 26... Qc8
{[%clk 0:00:40.9]} 27. Rfe1 {[%clk 0:00:24.9]} 27... Kh7 {[%clk 0:00:33.8]} 28.
g4 {[%clk 0:00:22.2]} 28... Ne6 {[%clk 0:00:32.8]} 29. Qc3 {[%clk 0:00:19.9]}
29... Bxe4 {[%clk 0:00:32]} 30. Bxe4 {[%clk 0:00:20.3]} 30... Nf4 {[%clk
0:00:27.6]} 31. Bc6 {[%clk 0:00:20]} 31... e5 {[%clk 0:00:20.9]} 32. Bxe8 {[%clk
0:00:15.1]} 32... Qxe8 {[%clk 0:00:21.8]} 33. Qxc4 {[%clk 0:00:15.6]} 33...
Nxh3+ {[%clk 0:00:21.7]} 34. Kh2 {[%clk 0:00:15.9]} 34... Ng5 {[%clk 0:00:18.8]}
35. Qc7+ {[%clk 0:00:15.7]} 35... Kh8 {[%clk 0:00:18.5]} 36. Qxd6 {[%clk
0:00:15.1]} 36... Rd8 {[%clk 0:00:15.7]} 37. Qf6+ {[%clk 0:00:13.2]} 37... Kh7
{[%clk 0:00:16.2]} 38. Kg2 {[%clk 0:00:11.9]} 38... Qd7 {[%clk 0:00:16]} 39.
Qxe5 {[%clk 0:00:10.9]} 39... Qb7+ {[%clk 0:00:15.6]} 40. Kf1 {[%clk 0:00:04.2]}
40... Qh1+ {[%clk 0:00:13.2]} 41. Ke2 {[%clk 0:00:04.7]} 41... Qf3+ {[%clk
0:00:11.5]} 42. Kf1 {[%clk 0:00:05]} 42... Qh3+ {[%clk 0:00:11.9]} 43. Ke2
{[%clk 0:00:04.9]} 43... Qd3# {[%clk 0:00:11.2]} 0-1

[Event "*** SCC Grand Prix: Titled Tuesday Blitz"]
[Site "Chess.com"]
[Date "2020.08.04"]
[Round "9"]
[White "Shield12"]
[Black "tptagain"]
[Result "1-0"]
[WhiteElo "2854"]
[BlackElo "2936"]
[TimeControl "180+1"]
[EndTime "15:27:38 PDT"]
[Termination "Shield12 won on time"]

1. e4 {[%clk 0:03:00.9]} 1... c5 {[%clk 0:02:59.5]} 2. Nf3 {[%clk 0:03:00.5]}
2... Nc6 {[%clk 0:03:00.1]} 3. Bb5 {[%clk 0:03:00.9]} 3... e6 {[%clk 0:03:00.1]}
4. Bxc6 {[%clk 0:03:00.5]} 4... bxc6 {[%clk 0:03:00.3]} 5. d3 {[%clk 0:03:01.4]}
5... Qc7 {[%clk 0:02:58.2]} 6. Qe2 {[%clk 0:02:57.6]} 6... e5 {[%clk 0:02:56.3]}
7. c3 {[%clk 0:02:54.9]} 7... Nf6 {[%clk 0:02:46]} 8. O-O {[%clk 0:02:54.3]}
8... Be7 {[%clk 0:02:44.7]} 9. d4 {[%clk 0:02:54]} 9... cxd4 {[%clk 0:02:42]}
10. cxd4 {[%clk 0:02:54.9]} 10... exd4 {[%clk 0:02:42]} 11. Nxd4 {[%clk
0:02:55.8]} 11... O-O {[%clk 0:02:40.1]} 12. Nc3 {[%clk 0:02:55.8]} 12... Re8
{[%clk 0:02:36.7]} 13. Re1 {[%clk 0:02:27.2]} 13... d6 {[%clk 0:02:14.5]} 14.
Bf4 {[%clk 0:02:25.3]} 14... Ng4 {[%clk 0:02:00.8]} 15. Rac1 {[%clk 0:02:17.8]}
15... Qb6 {[%clk 0:02:00.3]} 16. Qd2 {[%clk 0:02:12.2]} 16... Bd7 {[%clk
0:01:51.9]} 17. Nb3 {[%clk 0:02:06.5]} 17... Rad8 {[%clk 0:01:49.6]} 18. h3
{[%clk 0:01:53.1]} 18... Ne5 {[%clk 0:01:48.8]} 19. Qe2 {[%clk 0:01:43.3]} 19...
Ng6 {[%clk 0:01:37.8]} 20. Bg3 {[%clk 0:01:41.7]} 20... Be6 {[%clk 0:01:30.2]}
21. Qc2 {[%clk 0:01:17.6]} 21... c5 {[%clk 0:01:22.8]} 22. Nd2 {[%clk
0:01:14.3]} 22... Bf6 {[%clk 0:01:19.9]} 23. b3 {[%clk 0:01:13]} 23... Qb7
{[%clk 0:01:03.2]} 24. Nc4 {[%clk 0:01:12.4]} 24... Bxc4 {[%clk 0:01:03]} 25.
bxc4 {[%clk 0:01:13.3]} 25... Bxc3 {[%clk 0:01:02.8]} 26. Qxc3 {[%clk
0:01:14.2]} 26... Rxe4 {[%clk 0:01:03]} 27. Rxe4 {[%clk 0:01:08.3]} 27... Qxe4
{[%clk 0:01:03.9]} 28. Qa5 {[%clk 0:01:09.2]} 28... Qe7 {[%clk 0:00:55]} 29. Rb1
{[%clk 0:01:05.6]} 29... h5 {[%clk 0:00:53]} 30. Rb7 {[%clk 0:01:03.8]} 30...
Qf6 {[%clk 0:00:42.9]} 31. h4 {[%clk 0:00:49]} 31... Nxh4 {[%clk 0:00:43]} 32.
Bxh4 {[%clk 0:00:44.9]} 32... Qxh4 {[%clk 0:00:43.9]} 33. Rxa7 {[%clk
0:00:45.1]} 33... Kh7 {[%clk 0:00:34.1]} 34. Rxf7 {[%clk 0:00:39.9]} 34... Re8
{[%clk 0:00:32.9]} 35. Qc3 {[%clk 0:00:35.7]} 35... Qg5 {[%clk 0:00:22.5]} 36.
a4 {[%clk 0:00:33.6]} 36... Qg6 {[%clk 0:00:20.3]} 37. Rd7 {[%clk 0:00:32.6]}
37... Rb8 {[%clk 0:00:12.2]} 38. a5 {[%clk 0:00:29.8]} 38... Rb1+ {[%clk
0:00:11.2]} 39. Kh2 {[%clk 0:00:30]} 39... Rd1 {[%clk 0:00:07.4]} 40. a6 {[%clk
0:00:29.1]} 40... Qg4 {[%clk 0:00:07.3]} 41. Rxg7+ {[%clk 0:00:21]} 41... Qxg7
{[%clk 0:00:07.3]} 42. Qc2+ {[%clk 0:00:21.6]} 42... Kh6 {[%clk 0:00:04.7]} 43.
Qxd1 {[%clk 0:00:21.5]} 43... Qe5+ {[%clk 0:00:05]} 44. Kg1 {[%clk 0:00:20.6]}
44... Qb2 {[%clk 0:00:03.7]} 45. Qxd6+ {[%clk 0:00:19.9]} 45... Kh7 {[%clk
0:00:04.1]} 46. Qxc5 {[%clk 0:00:19.8]} 46... Qc1+ {[%clk 0:00:03.8]} 47. Kh2
{[%clk 0:00:19.6]} 47... Qh6 {[%clk 0:00:02.1]} 48. a7 {[%clk 0:00:19.3]} 1-0

[Event "*** SCC Grand Prix: Titled Tuesday Blitz"]
[Site "Chess.com"]
[Date "2020.08.04"]
[Round "9"]
[White "Ole83"]
[Black "elohunter1999"]
[Result "1-0"]
[WhiteElo "2351"]
[BlackElo "2467"]
[TimeControl "180+1"]
[EndTime "15:27:39 PDT"]
[Termination "Ole83 won on time"]

1. Nf3 {[%clk 0:02:59.8]} 1... f5 {[%clk 0:02:58.9]} 2. g3 {[%clk 0:02:57.8]}
2... Nf6 {[%clk 0:02:59.4]} 3. Bg2 {[%clk 0:02:57.9]} 3... e6 {[%clk 0:02:58.4]}
4. O-O {[%clk 0:02:57.6]} 4... d5 {[%clk 0:02:58.6]} 5. d3 {[%clk 0:02:57.6]}
5... Bd6 {[%clk 0:02:56.3]} 6. Nbd2 {[%clk 0:02:56.8]} 6... Nc6 {[%clk
0:02:18.5]} 7. e4 {[%clk 0:02:54.5]} 7... fxe4 {[%clk 0:02:16.9]} 8. dxe4 {[%clk
0:02:54.3]} 8... O-O {[%clk 0:02:17]} 9. Qe2 {[%clk 0:02:51.4]} 9... Be7 {[%clk
0:02:14]} 10. e5 {[%clk 0:02:45.1]} 10... Ng4 {[%clk 0:02:14]} 11. h3 {[%clk
0:02:43.1]} 11... Nh6 {[%clk 0:02:13.7]} 12. Nb3 {[%clk 0:02:35.8]} 12... Nf5
{[%clk 0:02:12.1]} 13. g4 {[%clk 0:02:29.2]} 13... Nh4 {[%clk 0:02:11.5]} 14.
Nxh4 {[%clk 0:02:29.2]} 14... Bxh4 {[%clk 0:02:12.4]} 15. f4 {[%clk 0:02:29.4]}
15... a5 {[%clk 0:02:11.1]} 16. a4 {[%clk 0:02:28.7]} 16... b6 {[%clk 0:02:10]}
17. Rd1 {[%clk 0:02:25]} 17... Ba6 {[%clk 0:02:06.3]} 18. Qe3 {[%clk 0:02:21.3]}
18... Qe7 {[%clk 0:02:05]} 19. Bf1 {[%clk 0:02:14]} 19... g5 {[%clk 0:02:01.4]}
20. Bxa6 {[%clk 0:02:10]} 20... Rxa6 {[%clk 0:02:02.3]} 21. f5 {[%clk
0:02:04.2]} 21... exf5 {[%clk 0:01:59.3]} 22. Qe2 {[%clk 0:02:02.1]} 22... Raa8
{[%clk 0:01:55.7]} 23. Rxd5 {[%clk 0:02:01.8]} 23... fxg4 {[%clk 0:01:52.5]} 24.
hxg4 {[%clk 0:01:58]} 24... Nb4 {[%clk 0:01:47.6]} 25. Rd1 {[%clk 0:01:48.3]}
25... Rf2 {[%clk 0:01:38.9]} 26. Qc4+ {[%clk 0:01:47.3]} 26... Kh8 {[%clk
0:01:33.2]} 27. e6 {[%clk 0:01:43.6]} 27... Rxc2 {[%clk 0:01:27.1]} 28. Qe4
{[%clk 0:01:41.2]} 28... Qf6 {[%clk 0:01:03.8]} 29. Qxa8+ {[%clk 0:01:35.8]}
29... Kg7 {[%clk 0:01:02]} 30. Rd7+ {[%clk 0:01:30.7]} 30... Kh6 {[%clk
0:01:00.1]} 31. Bxg5+ {[%clk 0:01:15.1]} 31... Bxg5 {[%clk 0:00:55.4]} 32. Qh1+
{[%clk 0:01:09.6]} 32... Bh4 {[%clk 0:00:52.8]} 33. Rf1 {[%clk 0:01:08.8]} 33...
Rf2 {[%clk 0:00:22.8]} 34. Qh3 {[%clk 0:00:57.3]} 34... Rxf1+ {[%clk 0:00:15.3]}
35. Qxf1 {[%clk 0:00:56.8]} 35... Qg5 {[%clk 0:00:15.9]} 36. Qe2 {[%clk
0:00:42.3]} 36... Qf4 {[%clk 0:00:13.3]} 37. Qd2 {[%clk 0:00:39.6]} 37... Bf2+
{[%clk 0:00:08.2]} 38. Kg2 {[%clk 0:00:34.5]} 38... Be3 {[%clk 0:00:07.1]} 39.
Qe2 {[%clk 0:00:29.1]} 39... Qe4+ {[%clk 0:00:07.4]} 40. Qf3 {[%clk 0:00:24.8]}
40... Qc2+ {[%clk 0:00:07.7]} 41. Kh3 {[%clk 0:00:21.4]} 41... Bg5 {[%clk
0:00:01.8]} 42. e7 {[%clk 0:00:17.2]} 1-0

[Event "*** SCC Grand Prix: Titled Tuesday Blitz"]
[Site "Chess.com"]
[Date "2020.08.04"]
[Round "9"]
[White "davidkalashian"]
[Black "boasovietica"]
[Result "1-0"]
[WhiteElo "2566"]
[BlackElo "2407"]
[TimeControl "180+1"]
[EndTime "15:27:42 PDT"]
[Termination "davidkalashian won by resignation"]

1. e4 {[%clk 0:03:00.9]} 1... e5 {[%clk 0:02:59.6]} 2. Nf3 {[%clk 0:03:00.3]}
2... Nc6 {[%clk 0:02:59.5]} 3. d4 {[%clk 0:03:00.1]} 3... exd4 {[%clk
0:02:59.4]} 4. Nxd4 {[%clk 0:03:01]} 4... Bb4+ {[%clk 0:02:59.8]} 5. Nc3 {[%clk
0:03:00.7]} 5... Qf6 {[%clk 0:02:51.1]} 6. Be3 {[%clk 0:02:57.3]} 6... Nge7
{[%clk 0:02:43]} 7. Be2 {[%clk 0:02:47.9]} 7... O-O {[%clk 0:02:39.9]} 8. O-O
{[%clk 0:02:47.2]} 8... d6 {[%clk 0:02:32.4]} 9. Nd5 {[%clk 0:02:42.9]} 9...
Nxd5 {[%clk 0:02:30.2]} 10. exd5 {[%clk 0:02:43.8]} 10... Ne5 {[%clk 0:02:10.9]}
11. Nb5 {[%clk 0:02:36.8]} 11... Ba5 {[%clk 0:02:03.5]} 12. b4 {[%clk
0:02:29.9]} 12... a6 {[%clk 0:02:01.5]} 13. Nxd6 {[%clk 0:02:21.6]} 13... Bxb4
{[%clk 0:01:46]} 14. Nxc8 {[%clk 0:02:18.6]} 14... Raxc8 {[%clk 0:01:46.1]} 15.
Qd4 {[%clk 0:02:17]} 15... Bc3 {[%clk 0:01:35.7]} 16. Qd1 {[%clk 0:02:00.2]}
16... Bxa1 {[%clk 0:01:33.1]} 17. Qxa1 {[%clk 0:02:01.1]} 17... Qd6 {[%clk
0:01:23.3]} 18. c4 {[%clk 0:01:54.7]} 18... b6 {[%clk 0:01:21.1]} 19. Qc3 {[%clk
0:01:52]} 19... Rfe8 {[%clk 0:01:20]} 20. h3 {[%clk 0:01:51.1]} 20... Rcd8
{[%clk 0:01:18.8]} 21. Rd1 {[%clk 0:01:49.8]} 21... a5 {[%clk 0:01:18.7]} 22. a3
{[%clk 0:01:46.6]} 22... Ng6 {[%clk 0:01:18.5]} 23. Bf1 {[%clk 0:01:41.9]} 23...
Rd7 {[%clk 0:01:07.2]} 24. Bd4 {[%clk 0:01:40.5]} 24... f6 {[%clk 0:01:06.7]}
25. c5 {[%clk 0:01:39.4]} 25... bxc5 {[%clk 0:01:04.4]} 26. Bxc5 {[%clk
0:01:37.2]} 26... Qe5 {[%clk 0:00:56.6]} 27. Bd4 {[%clk 0:01:36.9]} 27... Qg5
{[%clk 0:00:55.7]} 28. Be3 {[%clk 0:01:31.5]} 28... Qh5 {[%clk 0:00:39.3]} 29.
g4 {[%clk 0:01:23.6]} 29... Qe5 {[%clk 0:00:36.2]} 30. Bd4 {[%clk 0:01:19.8]}
30... Qe4 {[%clk 0:00:34.8]} 31. f3 {[%clk 0:01:00.3]} 31... Qf4 {[%clk
0:00:30]} 32. Bf2 {[%clk 0:00:47.9]} 32... Rde7 {[%clk 0:00:26.6]} 33. Rd4
{[%clk 0:00:37.8]} 33... Qd6 {[%clk 0:00:23.7]} 34. Qxa5 {[%clk 0:00:34.7]}
34... Ne5 {[%clk 0:00:20.1]} 35. Kg2 {[%clk 0:00:30.5]} 35... h5 {[%clk
0:00:16.8]} 36. Qb4 {[%clk 0:00:28.9]} 36... Qd7 {[%clk 0:00:15.9]} 37. Bb5
{[%clk 0:00:26.3]} 37... c6 {[%clk 0:00:10.8]} 38. dxc6 {[%clk 0:00:22.9]} 38...
Qc7 {[%clk 0:00:10]} 39. Qd6 {[%clk 0:00:19.4]} 39... Qa5 {[%clk 0:00:06]} 40.
a4 {[%clk 0:00:14.4]} 40... Ng6 {[%clk 0:00:05.9]} 41. c7 {[%clk 0:00:13.3]}
41... Qxc7 {[%clk 0:00:01.8]} 42. Qxc7 {[%clk 0:00:12.6]} 42... Rxc7 {[%clk
0:00:02.3]} 43. Bxe8 {[%clk 0:00:13.2]} 43... hxg4 {[%clk 0:00:02.8]} 44. Bxg6
{[%clk 0:00:12.4]} 1-0